bitfinex/quotes_ETHUSD_20220220
["timestamp","ask_amount","ask_price","bid_price","bid_amount"]
[1645326974452,1.10561,2716.0,2715.6,0.0034877]
[1645326974653,1.45167,2715.9,2715.6,0.0034877]
[1645326974909,2.45167,2715.9,2715.8,421.44412124]
[1645326975115,1.45167,2715.9,2715.8,421.44412124]
[1645326975307,1.45167,2715.9,2715.8,419.87892491]
[1645326975505,1.63577,2715.9,2715.8,419.87892491]
[1645326975907,1.45167,2715.9,2715.8,419.87892491]
[1645326976106,2.58577072,2715.9,2715.8,419.87892491]
[1645326977510,2.81617072,2715.9,2715.8,419.87892491]
[1645326977910,2.81617072,2715.9,2715.8,421.44401785]
[1645326978111,1.89450072,2715.9,2715.8,421.44401785]
[1645326979951,2.81600072,2715.9,2715.8,421.44401785]
[1645326980151,2.81600072,2715.9,2715.8,419.87892491]
[1645326980358,2.81600072,2715.9,2715.8,421.44401812]
[1645326981252,2.81600072,2715.9,2715.8,419.87892491]
[1645326982898,2.81502459,2715.9,2715.8,419.87892491]
[1645326984500,3.81502459,2715.9,2715.8,419.87892491]
[1645326992907,4.11502459,2715.9,2715.8,419.87892491]
[1645326998706,4.11502459,2715.9,2715.8,413.02181196]
[1645326998908,10.74302459,2715.9,2715.8,413.02181196]
[1645326999305,10.74302459,2715.9,2715.8,407.49074196]
[1645327000111,10.89043559,2715.9,2715.8,407.49074196]
[1645327000508,10.74302459,2715.9,2715.8,407.49074196]
[1645327004454,10.74302459,2715.9,2715.8,406.73674196]
[1645327005513,10.74302459,2715.9,2715.8,401.20567196]
[1645327007513,10.74302459,2715.9,2715.8,401.07667196]
[1645327010861,9.44302459,2715.9,2715.8,401.07667196]
[1645327012307,10.44302459,2715.9,2715.8,401.07667196]
[1645327013509,7.628,2715.9,2715.8,401.07667196]
[1645327013716,1.8432,2716.6,2715.8,401.07667196]
[1645327013717,2.76457,2716.7,2715.9,35.943]
[1645327014009,0.53,2716.9,2716.1,0.0127012]
[1645327014612,0.53,2716.9,2716.2,1.56487306]
[1645327014807,0.53,2716.9,2716.2,2.56817061]
[1645327015007,0.53,2716.9,2716.3,1.2157]
[1645327015206,0.53,2716.9,2716.4,0.00323109]
[1645327016061,0.53,2716.9,2716.3,1.2157]
[1645327016458,0.53,2716.9,2716.4,0.00323109]
[1645327017459,0.53,2716.9,2716.3,1.2157]
[1645327017660,0.53,2716.9,2716.4,0.00323109]
[1645327018062,1.0,2717.1,2716.4,0.00323109]
[1645327018267,1.0,2717.1,2716.4,2.5893239]
[1645327018465,0.56121621,2717.2,2716.4,1.02453109]
[1645327018662,0.56121621,2717.2,2716.4,1.0213]
[1645327018861,0.56121621,2717.2,2716.5,1.56474569]
[1645327019084,0.56121621,2717.2,2716.6,1.2409]
[1645327023111,1.84251,2717.1,2716.6,1.2409]
[1645327023760,1.92862616,2717.1,2716.6,1.2409]
[1645327024161,1.84251,2717.1,2716.6,1.2409]
[1645327024763,0.9213256,2717.0,2716.6,1.2409]
[1645327025262,1.8426856,2717.0,2716.6,1.2409]
[1645327025465,2.7640456,2717.0,2716.6,1.2409]
[1645327026864,1.84269,2716.9,2716.6,1.2409]
[1645327028907,2.37269,2716.9,2716.6,1.2409]
[1645327038559,1.45125,2716.9,2716.6,1.23992783]
[1645327042156,2.02641,2717.1,2716.7,1.5]
[1645327042441,2.842476,2717.4,2716.7,1.5]
[1645327042442,1.147338,2717.4,2716.7,1.5]
[1645327042650,0.53,2717.7,2716.7,1.5]
[1645327042838,0.5005,2717.7,2716.7,1.8]
[1645327043037,1.04155328,2717.7,2716.7,1.8]
[1645327043240,0.54105328,2717.7,2717.1,0.91640562]
[1645327043435,2.55583,2718.0,2717.1,0.91640562]
[1645327043436,0.7139,2718.0,2717.1,0.91640562]
[1645327043636,0.53,2718.0,2717.2,1.2027]
[1645327043837,1.07445097,2718.0,2717.1,0.91640562]
[1645327046462,1.22174797,2718.0,2717.1,0.91640562]
[1645327048262,0.69174797,2718.0,2717.1,0.91640562]
[1645327050514,0.69174797,2718.0,2717.1,13.08360562]
[1645327050515,0.147297,2718.0,2717.1,13.08360562]
[1645327051114,0.147297,2718.0,2717.1,14.90405264]
[1645327052515,0.147297,2718.0,2717.1,13.08360562]
[1645327054159,0.147297,2718.0,2717.3,11.17]
[1645327054561,0.147297,2718.0,2717.3,11.47]
[1645327055166,0.147297,2718.0,2717.3,11.77]
[1645327056066,0.147297,2718.0,2717.4,12.73421033]
[1645327056265,0.147297,2718.0,2717.5,1.1629]
[1645327056466,0.00356077,2718.1,2717.5,1.1629]
[1645327056667,0.00356077,2718.1,2717.5,1.4629]
[1645327057168,0.00356092,2718.1,2717.5,1.4629]
[1645327057412,0.00356092,2718.1,2717.5,1.1629]
[1645327057915,0.92088,2718.0,2717.5,1.1629]
[1645327063864,0.00356087,2718.1,2717.5,1.1629]
[1645327064265,1.84181,2718.2,2717.5,1.1629]
[1645327064468,0.00356092,2718.1,2717.5,1.1629]
[1645327064665,0.00356092,2718.1,2717.5,1.4629]
[1645327065517,1.10469,2718.3,2717.5,1.4629]
[1645327065713,0.00356092,2718.1,2717.5,1.4629]
[1645327066423,0.00356092,2718.1,2717.5,14.78219267]
[1645327066615,1.5409121,2718.7,2717.7,0.02967971]
[1645327066616,1.7248121,2718.7,2717.7,0.02967971]
[1645327066819,0.00356092,2718.1,2717.7,1.08617971]
[1645327067113,0.5409121,2718.7,2718.1,0.00354972]
[1645327067114,0.5103102,2718.7,2718.1,0.00354972]
[1645327067315,0.10992994,2718.8,2718.1,0.00354972]
[1645327067714,0.05112994,2718.8,2718.1,0.00354972]
[1645327067915,1.0,2719.0,2718.1,11.17354972]
[1645327068116,1.0,2719.0,2718.2,1.2332]
[1645327068319,2.27144799,2719.1,2718.2,1.2332]
[1645327068966,0.92053,2719.0,2718.2,1.2332]
[1645327071167,1.08754799,2719.1,2718.2,12.4032]
[1645327071168,0.53,2719.1,2718.2,12.4032]
[1645327071373,0.0366,2719.2,2718.2,13.3737]
[1645327071573,0.0063429,2719.8,2718.4,11.17]
[1645327071771,0.55459912,2720.3,2718.6,11.17]
[1645327071772,6.088e-05,2718.7,2718.6,11.17]
[1645327071969,0.147211,2719.7,2718.8,11.17073912]
[1645327072169,0.0063429,2720.2,2719.0,11.17]
[1645327072415,0.0063429,2720.4,2719.2,11.17]
[1645327072613,0.1900429,2720.6,2719.3,0.3]
[1645327072815,5.26290809,2720.8,2719.3,0.3]
[1645327072816,0.1900429,2720.7,2719.3,3.8]
[1645327073013,0.9263629,2720.5,2719.4,1.2351]
[1645327073212,0.92002,2720.5,2719.4,1.5351]
[1645327073417,0.0063429,2720.4,2719.4,1.5351]
[1645327073911,0.0063429,2720.4,2719.5,3.5]
[1645327074111,0.0063429,2720.4,2719.6,1.11383252]
[1645327074316,0.0063429,2720.4,2719.7,4.7388]
[1645327074814,0.09245906,2720.4,2719.7,4.7388]
[1645327075113,0.0063429,2720.4,2719.7,4.7388]
[1645327075814,0.9201,2720.2,2719.7,1.2388]
[1645327076065,0.0063429,2720.1,2719.7,1.2388]
[1645327076458,0.00970956,2720.1,2719.7,1.2388]
[1645327077559,0.0063429,2720.1,2719.7,1.2388]
[1645327077760,0.00349022,2720.0,2719.7,1.2388]
[1645327078565,0.0063429,2720.1,2719.7,1.2388]
[1645327078962,0.00349024,2720.0,2719.7,1.2388]
[1645327079808,0.0063429,2720.1,2719.7,1.2388]
[1645327080009,0.00349024,2720.0,2719.7,1.2388]
[1645327081013,0.0063429,2720.1,2719.7,1.2388]
[1645327081220,0.00337462,2720.0,2719.7,1.2388]
[1645327082116,0.0063429,2720.1,2719.7,1.2388]
[1645327082518,0.92022,2719.9,2719.7,1.2388]
[1645327083765,0.92359464,2719.9,2719.7,1.2388]
[1645327084564,0.92022,2719.9,2719.7,1.2388]
[1645327084762,0.92361155,2719.9,2719.7,1.2388]
[1645327085764,0.92022,2719.9,2719.7,1.2388]
[1645327086166,0.92361155,2719.9,2719.7,1.2388]
[1645327087066,0.92022,2719.9,2719.7,1.2388]
[1645327087323,0.92361155,2719.9,2719.7,1.2388]
[1645327088115,0.92022,2719.9,2719.7,1.2388]
[1645327088515,0.92360908,2719.9,2719.7,1.2388]
[1645327089516,0.92022,2719.9,2719.7,1.2388]
[1645327089715,0.92360908,2719.9,2719.7,1.2388]
[1645327090516,0.82360908,2719.9,2719.7,1.2388]
[1645327090718,0.82022,2719.9,2719.7,1.2388]
[1645327090918,0.82360908,2719.9,2719.7,1.2388]
[1645327091166,0.00338908,2719.9,2719.7,1.2388]
[1645327091764,0.9264729,2720.2,2719.7,1.2388]
[1645327091962,0.00338944,2719.9,2719.7,1.2388]
[1645327093063,0.9264729,2720.2,2719.7,1.2388]
[1645327093263,0.00338944,2719.9,2719.7,1.2388]
[1645327094267,0.9202,2720.0,2719.7,1.2388]
[1645327094466,0.00338944,2719.9,2719.7,1.2388]
[1645327095512,0.9202,2720.0,2719.7,1.2388]
[1645327095714,0.00338939,2719.9,2719.7,1.2388]
[1645327096712,0.9264429,2720.2,2719.7,1.2388]
[1645327096917,0.00338939,2719.9,2719.7,1.2388]
[1645327097913,0.9264429,2720.2,2719.7,1.2388]
[1645327098113,0.00338939,2719.9,2719.7,1.2388]
[1645327099264,0.0033894,2719.9,2719.7,1.2388]
[1645327100163,0.9264429,2720.2,2719.7,1.2388]
[1645327100363,0.0033894,2719.9,2719.7,1.2388]
[1645327101463,0.9264429,2720.2,2719.7,1.2388]
[1645327101663,0.0033894,2719.9,2719.7,1.2388]
[1645327102719,0.9264429,2720.2,2719.7,1.2388]
[1645327102919,0.00338939,2719.9,2719.7,1.2388]
[1645327103920,0.9264429,2720.2,2719.7,1.2388]
[1645327104125,0.00338939,2719.9,2719.7,1.2388]
[1645327105122,0.9264429,2720.2,2719.7,1.2388]
[1645327105323,0.00338939,2719.9,2719.7,1.2388]
[1645327105522,0.42983229,2720.2,2719.7,1.2388]
[1645327105723,0.92003,2720.5,2719.7,1.2388]
[1645327105922,1.92003,2720.5,2719.7,1.2388]
[1645327106167,0.92003,2720.5,2719.7,1.2388]
[1645327108467,0.92003,2720.5,2719.8,3.5]
[1645327108768,0.92003,2720.5,2719.7,1.2388]
[1645327109367,0.92003,2720.5,2719.8,3.5]
[1645327109567,0.92003,2720.5,2719.7,1.2388]
[1645327110010,0.00356033,2720.3,2719.7,1.2388]
[1645327110411,0.92366033,2720.3,2719.7,1.2388]
[1645327110611,0.92366033,2720.3,2719.8,3.5]
[1645327111013,0.9201,2720.3,2719.7,1.2388]
[1645327111213,0.00356036,2720.2,2719.7,1.2388]
[1645327111814,0.00356036,2720.2,2719.8,3.5]
[1645327112017,0.00356036,2720.2,2719.7,1.2388]
[1645327112215,0.9201,2720.3,2719.7,1.2388]
[1645327112420,0.00356038,2720.1,2719.8,3.5]
[1645327112717,0.00356038,2720.1,2719.7,1.2388]
[1645327113562,0.00356042,2720.0,2719.7,1.2388]
[1645327113762,0.00356042,2720.0,2719.8,3.5]
[1645327114166,0.00356042,2720.0,2719.7,1.2388]
[1645327114765,1.84025,2720.5,2719.7,1.2388]
[1645327114969,0.00356037,2720.0,2719.7,1.2388]
[1645327115765,1.1837,2720.7,2719.7,1.2388]
[1645327115966,0.82007,2720.4,2719.7,1.2388]
[1645327116165,0.00356037,2720.0,2719.7,1.2388]
[1645327116765,0.00356037,2720.0,2719.8,3.5]
[1645327116968,0.82007,2720.4,2719.8,3.5]
[1645327117165,0.82007,2720.4,2719.7,1.2388]
[1645327117413,0.00356037,2720.0,2719.7,1.2388]
[1645327118214,0.82007,2720.4,2719.7,1.2388]
[1645327118416,0.00356037,2720.0,2719.7,1.2388]
[1645327119413,0.82007,2720.4,2719.7,1.2388]
[1645327119614,0.00356037,2720.0,2719.7,1.2388]
[1645327120613,0.82007,2720.4,2719.7,1.2388]
[1645327120814,0.00356037,2720.0,2719.7,1.2388]
[1645327121862,1.0,2720.5,2719.7,1.2388]
[1645327122061,0.00356037,2720.0,2719.8,5.06322538]
[1645327122260,0.00356037,2720.0,2719.7,1.2388]
[1645327123067,2.02387,2720.6,2719.7,1.2388]
[1645327123267,0.00356037,2720.0,2719.7,1.2388]
[1645327124269,0.92004,2720.4,2719.7,1.2388]
[1645327124468,0.00356037,2720.0,2719.7,1.2388]
[1645327125516,0.92004,2720.4,2719.7,1.2388]
[1645327125714,0.00356037,2720.0,2719.7,1.2388]
[1645327127815,0.92004,2720.4,2719.7,1.2388]
[1645327128019,0.00356037,2720.0,2719.7,1.2388]
[1645327129064,0.92004,2720.4,2719.7,1.2388]
[1645327129277,0.00356037,2720.0,2719.7,1.2388]
[1645327130167,0.92004,2720.4,2719.7,1.2388]
[1645327130365,0.00356037,2720.0,2719.7,1.2388]
[1645327131373,0.92004,2720.4,2719.8,1.56324651]
[1645327131771,0.00356037,2720.0,2719.8,1.56324651]
[1645327132417,0.00356037,2720.0,2719.7,1.2388]
[1645327132618,0.92004,2720.4,2719.7,1.2388]
[1645327132817,0.92004,2720.4,2719.8,1.56325982]
[1645327133017,0.00356042,2720.0,2719.8,1.56325982]
[1645327133917,0.92004,2720.4,2719.8,1.56325982]
[1645327134119,0.00356042,2720.0,2719.8,1.56325982]
[1645327134918,0.00356042,2720.0,2719.8,5.06325982]
[1645327135119,0.92004,2720.4,2719.7,1.2388]
[1645327135422,0.00356042,2720.0,2719.8,1.5632316]
[1645327136261,0.92004,2720.4,2719.8,1.5632316]
[1645327136469,0.00356042,2720.0,2719.8,5.0632316]
[1645327136664,0.00356042,2720.0,2719.9,1.5632316]
[1645327136863,0.00356042,2720.0,2719.9,5.0632316]
[1645327137464,0.54028566,2720.8,2719.9,5.0632316]
[1645327137763,0.54028566,2720.8,2720.0,3.77764682]
[1645327137764,0.0035604,2720.1,2720.0,3.77764682]
[1645327138662,1.46020566,2720.8,2720.0,3.77764682]
[1645327138863,0.00356036,2720.2,2720.1,1.5632316]
[1645327139262,0.00356036,2720.2,2720.1,5.0632316]
[1645327139464,0.00356036,2720.2,2720.1,1.5632316]
[1645327139913,1.46020566,2720.8,2720.1,1.5632316]
[1645327140114,0.00356033,2720.3,2720.1,1.5632316]
[1645327140714,0.00356033,2720.3,2720.1,1.56220774]
[1645327141114,0.92,2720.5,2720.1,1.56220774]
[1645327141414,0.00356031,2720.3,2720.1,1.56220774]
[1645327142222,0.92,2720.5,2720.1,1.56220774]
[1645327142418,0.00356031,2720.3,2720.1,1.56220774]
[1645327143422,0.92,2720.5,2720.1,1.56220774]
[1645327143669,0.00356031,2720.3,2720.1,1.56220774]
[1645327144468,0.00356031,2720.3,2720.0,1.2388]
[1645327144670,1.84007,2720.7,2720.0,1.2388]
[1645327144871,0.00356031,2720.3,2720.0,1.2388]
[1645327145868,1.84007,2720.7,2720.0,1.2388]
[1645327146079,0.00356033,2720.3,2720.0,1.2388]
[1645327148219,0.91999,2720.5,2720.0,1.2388]
[1645327148417,0.00356033,2720.3,2720.0,1.2388]
[1645327149421,0.91999,2720.5,2720.0,1.2388]
[1645327149620,0.00356033,2720.3,2720.0,1.2388]
[1645327150618,0.91999,2720.5,2720.0,1.2388]
[1645327150819,0.00356033,2720.3,2720.0,1.2388]
[1645327151868,0.91999,2720.5,2720.0,1.2388]
[1645327152067,0.00356033,2720.3,2720.0,1.2388]
[1645327153071,0.91999,2720.5,2720.0,1.2388]
[1645327153271,0.00356033,2720.3,2720.0,1.2388]
[1645327154172,1.64388566,2720.8,2720.0,1.2388]
[1645327154570,0.00356033,2720.3,2720.0,1.2388]
[1645327155418,1.64388566,2720.8,2720.0,1.2388]
[1645327155616,0.00356033,2720.3,2720.0,1.2388]
[1645327156618,0.91998,2720.5,2720.0,1.2388]
[1645327156820,0.00356033,2720.3,2720.0,1.2388]
[1645327157223,0.00356033,2720.3,2720.1,3.5]
[1645327157723,0.00356033,2720.3,2720.0,1.2388]
[1645327157920,1.45931134,2720.8,2720.1,3.5]
[1645327158119,0.00356031,2720.3,2720.0,1.2388]
[1645327158969,0.91997,2720.6,2720.0,1.2388]
[1645327159365,0.00356033,2720.3,2720.0,1.2388]
[1645327160166,0.91997,2720.6,2720.0,1.2388]
[1645327160567,0.00356033,2720.3,2720.0,1.2388]
[1645327160769,0.00356033,2720.3,2720.1,1.56306755]
[1645327161366,0.91997,2720.6,2720.1,1.56306755]
[1645327161573,0.91997,2720.6,2720.1,5.06306755]
[1645327161768,0.00356031,2720.3,2720.0,1.2388]
[1645327161969,0.00356031,2720.3,2720.1,1.56306576]
[1645327162619,0.91997,2720.6,2720.1,1.56306576]
[1645327162816,0.00356031,2720.3,2720.1,1.56306576]
[1645327165019,0.91997,2720.6,2720.1,1.56306576]
[1645327165219,0.00356031,2720.3,2720.1,1.56306576]
[1645327166173,0.00631119,2720.5,2720.1,1.56306576]
[1645327166574,0.00356031,2720.3,2720.1,1.56306576]
[1645327167373,0.00631119,2720.5,2720.1,5.06306576]
[1645327167573,0.00631119,2720.5,2720.0,1.2388]
[1645327167771,0.00356031,2720.3,2720.1,1.56303662]
[1645327168573,0.00631119,2720.5,2720.1,1.56303662]
[1645327169074,0.00356031,2720.3,2720.1,1.56303662]
[1645327169917,0.92628119,2720.6,2720.1,1.56303662]
[1645327170120,0.00356031,2720.3,2720.1,1.56303662]
[1645327171126,0.92628119,2720.6,2720.1,1.56303662]
[1645327171321,0.00356031,2720.3,2720.1,1.56303662]
[1645327172321,0.92628119,2720.6,2720.1,1.56303662]
[1645327172523,0.00356031,2720.3,2720.1,1.56303662]
[1645327173570,0.91997,2720.6,2720.1,1.56303662]
[1645327173775,0.00356031,2720.3,2720.1,1.56303662]
[1645327174576,0.91997,2720.6,2720.1,1.56303662]
[1645327174972,0.00356031,2720.3,2720.1,1.56303662]
[1645327175774,0.91997,2720.6,2720.1,1.56303662]
[1645327176074,0.00356031,2720.3,2720.1,1.56303662]
[1645327177079,0.91997,2720.6,2720.1,1.56303662]
[1645327177316,0.00356031,2720.3,2720.1,1.56303662]
[1645327178319,0.91997,2720.6,2720.1,1.56303662]
[1645327178520,0.00356031,2720.3,2720.1,1.56303662]
[1645327179228,0.00356031,2720.3,2720.0,1.2388]
[1645327179421,2.17985,2720.4,2720.0,1.2388]
[1645327179823,0.00356031,2720.3,2720.0,1.2388]
[1645327180219,0.00356031,2720.3,2719.6,3.0745]
[1645327180421,0.92021,2720.1,2719.6,3.0745]
[1645327180722,0.92021,2720.1,2719.7,1.56172321]
[1645327180920,0.9237704,2720.1,2719.7,1.56172321]
[1645327181771,0.92021,2720.1,2719.7,1.56172321]
[1645327182181,0.00356042,2720.0,2719.7,1.56172321]
[1645327182573,0.00356042,2720.0,2719.7,1.51172321]
[1645327183073,0.92021,2720.1,2719.7,1.51172321]
[1645327183274,0.00356037,2720.0,2719.7,1.51172321]
[1645327183474,0.92387037,2720.0,2719.7,1.51172321]
[1645327183978,4.42387037,2720.0,2719.7,1.51172321]
[1645327184178,4.42387037,2720.0,2718.7,0.70159374]
[1645327184179,0.92036,2719.8,2718.7,0.70159374]
[1645327184376,4.03,2719.7,2718.8,1.182]
[1645327184827,1.0,2719.6,2718.8,1.182]
[1645327185220,3.5,2719.5,2718.8,1.182]
[1645327185723,2.45054,2719.4,2718.8,1.182]
[1645327185921,3.6837,2719.3,2718.5,0.01301928]
[1645327186122,0.83,2719.2,2718.5,0.01301928]
[1645327186324,3.5,2719.1,2718.5,0.01301928]
[1645327186523,0.53,2719.0,2718.5,0.01301928]
[1645327186722,2.45057,2719.0,2718.1,2.31318623]
[1645327186923,2.45057,2719.0,2718.3,0.01302052]
[1645327187327,3.5,2718.9,2718.3,0.01302052]
[1645327187922,5.34124,2718.9,2718.1,1.21364972]
[1645327188122,5.34124,2718.9,2718.1,1.2299265]
[1645327188322,3.5,2718.9,2718.1,1.2299265]
[1645327188568,4.4206,2718.9,2718.1,1.2299265]
[1645327188967,4.4206,2718.9,2718.1,1.21364972]
[1645327189370,4.4206,2718.9,2718.1,1.21690503]
[1645327190171,4.4206,2718.9,2718.1,1.21364972]
[1645327190570,4.4206,2718.9,2718.1,1.21690503]
[1645327191370,4.4206,2718.9,2718.1,1.21364972]
[1645327191771,4.4206,2718.9,2718.1,1.21690503]
[1645327192625,4.4206,2718.9,2718.1,1.21364972]
[1645327192822,4.4206,2718.9,2718.1,1.21690503]
[1645327193421,0.9206,2718.9,2718.1,1.21690503]
[1645327193621,2.63447,2719.0,2718.1,12.68690503]
[1645327193622,0.1839,2719.0,2718.1,12.68690503]
[1645327193824,0.1839,2719.3,2718.2,1.0]
[1645327194022,3.5,2719.5,2718.2,1.0]
[1645327194220,3.5,2719.5,2718.1,1.81364972]
[1645327194221,0.1839,2719.6,2718.1,2.81690503]
[1645327194424,1.0,2719.6,2718.1,2.81690503]
[1645327194622,6.9882,2719.7,2718.1,2.81690503]
[1645327194821,6.9882,2719.7,2718.1,13.98690503]
[1645327195127,0.92035,2719.5,2718.1,2.81364972]
[1645327195423,3.5,2719.4,2718.4,0.01302004]
[1645327195622,0.92035,2719.5,2718.4,0.01302004]
[1645327196272,1.067567,2719.5,2718.1,2.81364972]
[1645327196471,0.92035,2719.5,2718.1,2.81364972]
[1645327196671,0.92035,2719.5,2718.4,0.0130198]
[1645327196876,0.92054,2719.4,2718.4,0.0130198]
[1645327197076,0.92057,2719.1,2718.4,0.0130198]
[1645327197472,0.92057,2719.1,2718.1,2.81364972]
[1645327197678,0.92057,2719.1,2718.2,0.01302076]
[1645327198571,0.92057,2719.1,2718.1,2.81364972]
[1645327198972,0.92057,2719.1,2718.1,2.82992626]
[1645327199373,1.92057,2719.1,2718.1,1.52992626]
[1645327199577,0.92057,2719.1,2718.1,1.82992626]
[1645327199829,0.92057,2719.1,2718.1,2.81364972]
[1645327200018,0.92057,2719.1,2718.1,2.8299265]
[1645327200517,0.92057,2719.1,2718.1,2.5299265]
[1645327200720,0.92057,2719.1,2718.1,1.5299265]
[1645327201122,0.92057,2719.1,2718.1,1.81364972]
[1645327201323,0.92057,2719.1,2718.1,1.5299265]
[1645327202032,0.92057,2719.1,2718.1,1.8299265]
[1645327202225,0.92057,2719.1,2718.1,1.81364972]
[1645327202424,0.92057,2719.1,2718.1,1.8299265]
[1645327202625,0.92057,2719.1,2718.2,1.56359688]
[1645327203674,0.92057,2719.1,2718.1,2.82992626]
[1645327204672,0.92057,2719.1,2718.1,2.81364972]
[1645327204871,0.92057,2719.1,2718.1,2.8299265]
[1645327205872,0.92057,2719.1,2718.1,2.81364972]
[1645327206178,0.92057,2719.1,2718.1,2.8299265]
[1645327206972,0.92057,2719.1,2718.1,2.8116885]
[1645327207331,0.92057,2719.1,2718.1,2.82796528]
[1645327208331,0.92057,2719.1,2718.1,2.8116885]
[1645327208531,0.92057,2719.1,2718.1,2.82796528]
[1645327209432,0.92057,2719.1,2718.1,2.8116885]
[1645327209730,0.92057,2719.1,2718.1,2.82796528]
[1645327210734,0.92057,2719.1,2718.1,2.8116885]
[1645327210933,0.92057,2719.1,2718.1,2.82796528]
[1645327211371,0.08401,2719.3,2718.1,2.82796528]
[1645327211774,0.92039,2719.4,2718.1,13.9816885]
[1645327212173,0.92039,2719.4,2718.2,0.01302099]
[1645327213077,0.92039,2719.4,2718.1,2.81494381]
[1645327213078,0.92039,2719.4,2718.1,2.8116885]
[1645327213277,0.92039,2719.4,2718.3,0.01302052]
[1645327213475,1.84094,2719.4,2718.3,0.01302052]
[1645327213875,0.92055,2719.1,2718.3,0.01302052]
[1645327214273,0.92055,2719.1,2718.1,2.8116885]
[1645327214473,0.92055,2719.1,2718.2,0.01302099]
[1645327215532,0.92055,2719.1,2718.1,7.53753532]
[1645327215730,0.92055,2719.1,2718.1,7.55381186]
[1645327215935,0.92055,2719.1,2718.1,5.17677591]
[1645327216229,0.92055,2719.1,2718.1,2.83145313]
[1645327216431,0.92055,2719.1,2718.1,7.55401833]
[1645327216631,0.92055,2719.1,2718.1,5.19241901]
[1645327216830,0.92055,2719.1,2718.1,2.83145337]
[1645327217833,0.92055,2719.1,2718.1,5.16049937]
[1645327218233,0.92055,2719.1,2718.1,5.17677615]
[1645327218676,0.92055,2719.1,2718.2,0.00348809]
[1645327224120,0.92055,2719.1,2718.2,1.5670002]
[1645327224321,0.92055,2719.1,2718.3,0.00348809]
[1645327224722,0.9190447,2719.1,2718.3,0.00348809]
[1645327225524,0.9190447,2719.1,2718.3,1.5670002]
[1645327225722,0.9190447,2719.1,2718.4,1.2339]
[1645327225925,0.9190447,2719.1,2718.5,1.56351211]
[1645327231528,0.9190447,2719.1,2718.5,1.5670002]
[1645327236583,0.9190447,2719.1,2718.6,0.00348809]
[1645327243080,0.92039,2719.3,2718.6,0.00348809]
[1645327248670,0.92039,2719.3,2718.6,0.00227666]
[1645327251876,3.5,2719.2,2718.6,0.00227666]
[1645327252082,1.84117,2719.1,2718.6,0.00227666]
[1645327252328,0.53,2719.0,2718.6,0.00227666]
[1645327252525,3.61296422,2719.0,2718.6,0.00227666]
[1645327252726,3.08296422,2718.9,2718.6,0.00227666]
[1645327252928,1.84152,2718.8,2718.3,0.01302052]
[1645327253226,1.84153,2718.7,2718.4,1.56351211]
[1645327254026,1.84153,2718.7,2718.5,1.56351211]
[1645327254225,1.84153,2718.7,2718.6,1.56351211]
[1645327254425,1.84153,2718.7,2718.3,0.00227666]
[1645327258280,1.92076,2718.8,2718.3,0.00227666]
[1645327260426,1.0,2719.0,2718.3,0.00227666]
[1645327260627,1.0,2718.9,2718.3,0.00227666]
[1645327260823,1.0,2719.0,2718.3,0.00227666]
[1645327261425,2.0,2718.7,2717.9,1.73921541]
[1645327261629,0.01265687,2718.0,2717.7,0.02967971]
[1645327261830,1.45107,2717.9,2716.9,0.7017558]
[1645327262025,1.45107,2717.9,2716.6,1.2017558]
[1645327262026,0.8958,2717.9,2716.6,1.2017558]
[1645327262225,4.1,2717.8,2716.6,0.5]
[1645327262429,0.61394,2717.7,2716.5,1.1669]
[1645327262629,1.84272,2717.5,2716.5,1.1669]
[1645327262829,0.92136,2717.2,2716.5,1.1669]
[1645327263024,0.92136,2717.1,2716.5,1.1669]
[1645327263330,1.22136,2717.1,2716.5,1.1669]
[1645327263581,1.22136,2717.1,2716.0,2.3468]
[1645327263582,0.92158,2716.7,2716.0,2.3468]
[1645327263778,0.53,2716.6,2716.0,2.3468]
[1645327263978,1.84316,2716.5,2716.0,2.3468]
[1645327264178,1.84316,2716.5,2715.8,401.07667196]
[1645327264390,0.53,2716.4,2715.8,401.07667196]
[1645327264583,0.92166,2716.3,2715.8,401.07667196]
[1645327264782,9.14239202,2716.3,2715.8,401.07667196]
[1645327264990,12.64239202,2716.3,2715.8,401.07667196]
[1645327265181,1.0,2716.2,2715.8,401.07667196]
[1645327266080,2.84326,2716.2,2715.8,401.07667196]
[1645327266281,2.84326,2716.2,2715.9,0.00321727]
[1645327267184,2.84326,2716.2,2715.8,401.07667196]
[1645327267428,1.0,2716.2,2715.9,0.00321721]
[1645327267822,0.83,2716.3,2715.9,0.00321721]
[1645327268023,1.7514,2716.3,2715.9,0.00321721]
[1645327268224,2.0514,2716.3,2715.9,0.00321721]
[1645327268422,2.0514,2716.3,2715.8,401.07667196]
[1645327268622,2.0514,2716.3,2716.0,0.00321715]
[1645327269222,0.83,2716.3,2716.0,0.00321715]
[1645327269624,0.3,2716.3,2715.8,401.07667196]
[1645327269826,1.52132,2716.6,2716.0,0.00321709]
[1645327270230,0.53,2716.7,2716.0,0.00321709]
[1645327270826,0.53,2716.7,2715.8,401.07667196]
[1645327271074,0.53,2716.7,2716.2,0.00321686]
[1645327271877,0.53,2716.7,2715.9,3.5]
[1645327271878,0.92134,2716.5,2715.9,3.5]
[1645327272076,0.92134,2716.5,2715.8,401.07667196]
[1645327272276,0.92134,2716.5,2716.3,0.00321674]
[1645327272885,1.92134,2716.5,2716.3,0.00321674]
[1645327273080,1.52134,2716.5,2715.8,401.07667196]
[1645327273278,2.52134,2716.5,2715.8,401.07667196]
[1645327273477,1.52134,2716.5,2716.3,0.0032168]
[1645327273680,1.0,2716.4,2716.3,0.0032168]
[1645327273878,2.52134,2716.5,2716.4,1.66919409]
[1645327274279,1.92134,2716.5,2716.4,1.66919409]
[1645327276024,2.52134,2716.5,2716.4,1.66919409]
[1645327277823,0.92134,2716.5,2716.4,1.66919409]
[1645327279375,2.22134,2716.5,2716.4,1.66919409]
[1645327285127,2.22134,2716.5,2716.4,1.66781191]
[1645327288871,1.92134,2716.5,2716.4,1.66781191]
[1645327289271,2.45134,2716.5,2716.4,1.66781191]
[1645327292431,3.05134,2716.5,2716.4,1.66781191]
[1645327293676,3.05134,2716.5,2716.4,1.63677711]
[1645327293879,3.13745616,2716.5,2716.4,1.63677711]